bitfinex-derivatives/quotes_BTCF0:USTF0_20251030
["timestamp","ask_amount","ask_price","bid_price","bid_amount"]
[1761833547216,0.20566,108060.0,108050.0,0.04767]
[1761833547420,0.5795,108060.0,108050.0,0.04767]
[1761833547821,0.04666,108050.0,108040.0,0.42032]
[1761833548223,0.04666,108050.0,108040.0,0.40647]
[1761833548425,0.04666,108050.0,108040.0,0.42029]
[1761833548620,0.04666,108050.0,108040.0,0.40647]
[1761833548820,0.04666,108050.0,108040.0,0.42029]
[1761833549027,0.15666,108050.0,108040.0,0.40647]
[1761833549220,0.15966,108050.0,108040.0,0.40647]
[1761833549426,0.273,108050.0,108030.0,0.41067675]
[1761833549730,0.04666,108040.0,108030.0,0.45634675]
[1761833549929,0.06666,108040.0,108030.0,0.45634675]
[1761833550227,0.03676,108020.0,108010.0,0.05937455]
[1761833550529,0.1797,108020.0,108010.0,0.07242968]
[1761833550723,0.3997,108020.0,108010.0,0.07242968]
[1761833551229,0.39979222,108020.0,108010.0,0.07242968]
[1761833551430,0.18916536,108020.0,108010.0,0.07242968]
[1761833551934,0.19216536,108020.0,108010.0,0.07242968]
[1761833552128,0.04975222,108020.0,108010.0,0.09545968]
[1761833552427,0.05375222,108020.0,108010.0,0.09545968]
[1761833552628,0.34375222,108020.0,108010.0,0.09545968]
[1761833552930,0.71759222,108020.0,108010.0,0.04978968]
[1761833553125,1.31759222,108020.0,108010.0,0.04978968]
[1761833553317,0.04666,108010.0,108000.0,0.04978968]
[1761833553521,0.0597,108000.0,107980.0,0.14950654]
[1761833553730,0.04673001,107990.0,107980.0,0.47294579]
[1761833554032,7.001e-05,107990.0,107980.0,0.89091737]
[1761833554232,7.001e-05,107990.0,107980.0,0.48676579]
[1761833554531,0.04673001,107990.0,107980.0,0.11214579]
[1761833555031,0.06673001,107990.0,107980.0,0.11214579]
[1761833555228,0.04673001,107990.0,107980.0,0.04567]
[1761833555428,0.04673001,107990.0,107980.0,0.40647]
[1761833555930,0.04673001,107990.0,107980.0,0.40747]
[1761833556232,7.001e-05,107990.0,107980.0,0.91806928]
[1761833556423,7.001e-05,107990.0,107980.0,0.89191737]
[1761833556924,7.001e-05,107990.0,107980.0,0.48776579]
[1761833558328,7.001e-05,107990.0,107980.0,0.98454507]
[1761833558530,7.001e-05,107990.0,107980.0,1.31546507]
[1761833558736,7.001e-05,107990.0,107980.0,0.91131349]
[1761833558928,7.001e-05,107990.0,107980.0,1.31546507]
[1761833559123,7.001e-05,107990.0,107980.0,0.81592579]
[1761833559330,0.02379001,107990.0,107980.0,0.81592579]
[1761833560537,7.001e-05,107990.0,107980.0,0.81592579]
[1761833561235,7.001e-05,107990.0,107980.0,0.74945]
[1761833562033,7.001e-05,107990.0,107980.0,0.42129]
[1761833562430,7.001e-05,107990.0,107980.0,0.5139177]
[1761833562630,7.001e-05,107990.0,107980.0,0.42129]
[1761833563134,7.001e-05,107990.0,107980.0,0.48776579]
[1761833563336,7.001e-05,107990.0,107980.0,0.42129]
[1761833563834,0.07593,108000.0,107980.0,0.96190507]
[1761833564040,0.40746,108030.0,108020.0,0.05374]
[1761833564330,0.04666,108030.0,108020.0,0.05949]
[1761833566037,0.05266,108030.0,108020.0,0.05949]
[1761833566339,0.41346,108030.0,108020.0,0.04567]
[1761833566633,0.0597,108020.0,108010.0,0.04567]
[1761833567229,0.04666,108020.0,108010.0,0.04567]
[1761833567731,0.41746,108030.0,108020.0,0.04567]
[1761833568034,0.41346,108030.0,108020.0,0.04567]
[1761833568335,0.42746,108030.0,108020.0,0.04567]
[1761833568539,0.06666,108030.0,108020.0,0.04567]
[1761833568742,0.18666,108030.0,108020.0,0.04567]
[1761833569041,0.37266,108030.0,108020.0,0.04567]
[1761833569425,0.73346,108030.0,108000.0,0.36887]
[1761833569635,0.0597,108020.0,108010.0,0.02264]
[1761833569940,0.0797,108020.0,108010.0,0.02264]
[1761833570132,0.04666,108010.0,108000.0,0.40647]
[1761833570737,0.02372,108010.0,108000.0,0.42029]
[1761833570934,0.04666,108010.0,108000.0,0.40647]
[1761833571143,0.04666,108010.0,108000.0,0.04567]
[1761833572331,0.04866,108010.0,108000.0,0.41964]
[1761833572540,0.002,108010.0,108000.0,0.91640208]
[1761833572735,0.0241,108010.0,108000.0,0.41964]
[1761833572938,0.003,108010.0,108000.0,0.41964]
[1761833573332,0.04545,108010.0,108000.0,0.41964]
[1761833573937,0.04545,108010.0,108000.0,0.05884]
[1761833574540,0.04545,108010.0,108000.0,0.04567]
[1761833575042,0.04545,108010.0,108000.0,0.02264]
[1761833575242,0.73625,108010.0,108000.0,0.02264]
[1761833575539,0.04245,107990.0,107980.0,0.06648427]
[1761833575739,0.32245,107990.0,107980.0,0.06648427]
[1761833575927,1.09016158,107990.0,107980.0,0.06648427]
[1761833576132,1.69016158,107990.0,107980.0,0.06648427]
[1761833576336,1.68740158,107990.0,107980.0,0.06648427]
[1761833576536,0.05621,107980.0,107970.0,0.06648427]
[1761833576732,0.04245,107970.0,107960.0,0.06000289]
[1761833576937,0.41275759,107970.0,107960.0,0.14303364]
[1761833577132,0.41275759,107970.0,107960.0,0.00011289]
[1761833577340,0.71275759,107970.0,107960.0,0.00011289]
[1761833577539,0.71175759,107970.0,107960.0,0.06663358]
[1761833577841,1.11590917,107970.0,107960.0,0.06963358]
[1761833578041,0.71175759,107970.0,107960.0,0.06963358]
[1761833578238,0.72175759,107970.0,107960.0,0.09276358]
[1761833578441,0.72175759,107970.0,107960.0,0.09776358]
[1761833578636,0.72175759,107970.0,107960.0,0.07463358]
[1761833579148,0.72275759,107970.0,107960.0,0.06963358]
[1761833579338,0.72275759,107970.0,107960.0,0.06663358]
[1761833580541,1.12690917,107970.0,107960.0,0.06162818]
[1761833580741,0.0211,107930.0,107920.0,0.42004]
[1761833580940,0.03442874,107930.0,107920.0,0.17570375]
[1761833581141,0.03442874,107930.0,107920.0,1.67570375]
[1761833581544,0.3608,107950.0,107920.0,2.03650375]
[1761833581846,0.4033612,107940.0,107930.0,0.12921637]
[1761833582048,0.0425612,107940.0,107930.0,0.12921637]
[1761833582239,0.0001112,107940.0,107930.0,0.12921637]
[1761833582544,0.0001112,107940.0,107930.0,0.49001637]
[1761833582936,0.0001112,107940.0,107930.0,0.40687]
[1761833583137,0.7133612,107940.0,107930.0,0.04607]
[1761833583447,0.0001112,107940.0,107930.0,0.40687]
[1761833584044,0.0001112,107940.0,107930.0,0.89692795]
[1761833584247,0.3608,107970.0,107940.0,0.01317]
[1761833584248,0.68884,107970.0,107940.0,0.01317]
[1761833584448,0.97884,107970.0,107940.0,0.37397]
[1761833584650,0.40325,107960.0,107950.0,0.02313]
[1761833584943,0.61683643,107960.0,107950.0,0.04607]
[1761833585149,0.44683643,107960.0,107950.0,0.04607]
[1761833585448,0.45325,107960.0,107950.0,0.04607]
[1761833585648,0.45325,107960.0,107940.0,0.05924]
[1761833585649,0.04245,107950.0,107940.0,0.05924]
[1761833585845,0.73325,107950.0,107940.0,0.04607]
[1761833586049,0.04245,107940.0,107930.0,0.40687]
[1761833586245,0.06245,107940.0,107930.0,0.40687]
[1761833586644,0.73325,107940.0,107930.0,0.04607]
[1761833587142,0.45325,107940.0,107930.0,0.04607]
[1761833587344,0.42325,107940.0,107930.0,0.04607]
[1761833587563,0.71325,107940.0,107930.0,0.02313]
[1761833587746,0.04245,107930.0,107920.0,1.87397]
[1761833588350,0.40325,107940.0,107930.0,0.04607]
[1761833588649,0.45325,107940.0,107930.0,0.04807]
[1761833589442,0.40325,107940.0,107930.0,0.04807]
[1761833589641,0.3608,107940.0,107930.0,0.04807]
[1761833589841,0.3808,107940.0,107930.0,0.04807]
[1761833590040,0.3608,107940.0,107930.0,0.04607]
[1761833590345,0.73129,107950.0,107940.0,0.04607]
[1761833590539,0.73129,107950.0,107940.0,0.05924]
[1761833590740,1.03129,107950.0,107940.0,0.05924]
[1761833590940,0.04045,107930.0,107920.0,1.87397]
[1761833591445,0.0391,107930.0,107920.0,1.87397]
[1761833591643,0.0191,107930.0,107920.0,1.87397]
[1761833591949,0.3608,107940.0,107920.0,1.87397]
[1761833592144,0.45325,107940.0,107930.0,0.04607]
[1761833592446,0.57325,107940.0,107930.0,0.04607]
[1761833592653,0.3608,107950.0,107940.0,0.05924]
[1761833592952,0.73325,107950.0,107940.0,0.05924]
[1761833593142,0.04245,107940.0,107930.0,0.04607]
[1761833593343,0.09245,107940.0,107930.0,0.04607]
[1761833593653,0.05,107940.0,107930.0,0.04607]
[1761833593843,0.0711,107940.0,107930.0,0.04607]
[1761833594038,0.09245,107940.0,107930.0,0.04607]
[1761833594352,0.0711,107940.0,107930.0,0.04607]
[1761833594546,0.3829,107950.0,107940.0,0.02313]
[1761833594746,0.71425,107950.0,107940.0,0.04607]
[1761833594950,0.71325,107950.0,107920.0,1.87397]
[1761833595245,0.04386,107930.0,107920.0,1.87397]
[1761833595453,0.80881158,107950.0,107940.0,0.04461]
[1761833595650,0.74466,107950.0,107940.0,0.04461]
[1761833595846,0.74466,107950.0,107920.0,2.27812158]
[1761833596058,0.04386,107930.0,107920.0,1.51317]
[1761833596250,0.02169,107930.0,107920.0,1.51317]
[1761833596444,0.02169,107930.0,107920.0,1.87497]
[1761833596644,0.40466,107940.0,107930.0,0.04461]
[1761833596849,0.69466,107940.0,107930.0,0.04461]
[1761833597458,0.69466,107940.0,107930.0,0.02133]
[1761833597955,0.69466,107940.0,107930.0,0.04461]
[1761833598350,0.69466,107940.0,107930.0,0.04561]
[1761833598751,0.42466,107940.0,107930.0,0.04561]
[1761833598946,0.40466,107940.0,107930.0,0.04561]
[1761833599252,0.40466,107950.0,107940.0,0.05788]
[1761833599445,0.40466,107950.0,107930.0,0.04561]
[1761833599446,0.04386,107940.0,107930.0,0.04561]
[1761833599646,1.41681158,107940.0,107930.0,0.001]
[1761833599851,0.04386,107910.0,107900.0,0.05778]
[1761833600154,0.06386,107910.0,107900.0,0.05778]
[1761833600347,0.06386,107910.0,107900.0,0.41858]
[1761833600547,0.73266,107920.0,107910.0,0.04461]
[1761833600861,0.04386,107910.0,107900.0,0.05778]
[1761833601054,0.04544,107900.0,107890.0,0.40429]
[1761833601262,0.04244,107900.0,107890.0,0.40429]
[1761833601554,0.04544,107880.0,107870.0,0.40438817]
[1761833601858,0.37444,107880.0,107870.0,1.54358817]
[1761833602056,0.37444,107880.0,107870.0,0.04358817]
[1761833602359,0.15144,107880.0,107870.0,0.04358817]
[1761833602557,0.15144,107880.0,107870.0,1.54358817]
[1761833603053,0.04144,107880.0,107870.0,1.54458817]
[1761833603255,0.19144,107880.0,107870.0,1.54458817]
[1761833603452,0.03844,107880.0,107870.0,0.04458817]
[1761833603651,0.35844,107880.0,107870.0,0.04458817]
[1761833604154,0.03844,107880.0,107870.0,0.04458817]
[1761833604348,0.19844,107880.0,107870.0,0.04458817]
[1761833604545,0.19844,107880.0,107870.0,0.04358817]
[1761833604949,0.03844,107880.0,107870.0,0.04358817]
[1761833605152,0.6888,107890.0,107880.0,0.05738]
[1761833605359,0.8639302,107890.0,107880.0,0.05738]
[1761833605560,0.84424,107890.0,107880.0,0.05738]
[1761833605754,0.04544,107890.0,107880.0,0.41818]
[1761833606057,0.73424,107900.0,107890.0,0.04349]
[1761833606449,0.73105,107900.0,107890.0,0.04349]
[1761833606649,0.73424,107900.0,107890.0,0.02177]
[1761833606853,0.73424,107900.0,107880.0,0.41918]
[1761833606854,0.04544,107890.0,107880.0,0.41918]
[1761833607256,0.73424,107900.0,107890.0,0.04349]
[1761833607459,0.35625,107900.0,107890.0,0.04449]
[1761833607661,0.37944,107900.0,107890.0,0.04449]
[1761833607859,0.40144,107900.0,107890.0,0.04449]
[1761833608062,0.38144,107900.0,107890.0,0.04449]
[1761833608264,0.37544,107900.0,107890.0,0.04349]
[1761833608752,0.46126,107900.0,107890.0,0.40429]
[1761833608949,0.75126,107900.0,107890.0,0.04349]
[1761833609159,0.04544,107890.0,107880.0,0.05838]
[1761833609455,0.04544,107890.0,107880.0,0.41918]
[1761833609660,0.77662,107900.0,107890.0,0.04349]
[1761833609859,1.34846355,107900.0,107890.0,0.04349]
[1761833610066,0.04544,107890.0,107880.0,0.41918]
[1761833610262,0.30628355,107890.0,107880.0,0.39646]
[1761833610461,0.28628355,107890.0,107880.0,0.05738]
[1761833610764,0.47687,107900.0,107890.0,0.04349]
[1761833611259,0.08582,107900.0,107890.0,0.40429]
[1761833611456,0.08582,107900.0,107890.0,1.24613355]
[1761833611652,0.3608,107920.0,107890.0,0.73883815]
[1761833611855,0.3608,107920.0,107910.0,0.04349]
[1761833612760,0.40624,107920.0,107910.0,0.04349]
[1761833613062,0.003,107920.0,107910.0,0.64613355]
[1761833613363,0.003,107920.0,107910.0,0.40429]
[1761833614065,0.008,107920.0,107910.0,0.40529]
[1761833614259,0.005,107920.0,107910.0,0.40529]
[1761833614459,0.008,107920.0,107910.0,0.40529]
[1761833614856,0.004,107920.0,107910.0,0.40429]
[1761833615164,0.02825,107920.0,107910.0,0.40429]
[1761833615368,0.006,107920.0,107910.0,0.40429]
[1761833615565,0.006,107920.0,107910.0,0.04349]
[1761833615864,0.45597148,107940.0,107930.0,0.04349]
[1761833615865,0.08578,107940.0,107930.0,0.04349]
[1761833616163,0.08578,107940.0,107930.0,1.09960375]
[1761833616460,0.02476525,107960.0,107950.0,0.1361431]
[1761833616655,0.02476525,107970.0,107960.0,0.05738]
[1761833616854,0.02476525,107970.0,107960.0,0.66002355]
[1761833616855,0.02372328,107970.0,107960.0,0.66002355]
[1761833617579,0.02372328,107970.0,107960.0,0.41818]
[1761833617963,0.02672328,107970.0,107960.0,0.41818]
[1761833618163,0.02672328,107970.0,107960.0,0.05738]
[1761833618463,0.03172328,107970.0,107960.0,0.41818]
[1761833618668,0.03172328,107970.0,107960.0,0.66002355]
[1761833619868,0.03172328,107970.0,107960.0,0.41818]
[1761833620459,0.03172328,107970.0,107960.0,0.05738]
[1761833620666,0.03172328,107970.0,107960.0,0.41818]
[1761833621365,0.41716328,107970.0,107960.0,0.41818]
[1761833621668,0.09716328,107970.0,107960.0,0.05738]
[1761833621862,0.03172328,107970.0,107960.0,0.66002355]
[1761833622069,0.03172328,107970.0,107960.0,0.41818]
[1761833622568,0.008,107970.0,107960.0,0.41818]
[1761833622761,0.008,107970.0,107960.0,0.66002355]
[1761833623665,0.08394,107970.0,107960.0,0.66002355]
[1761833624165,0.11051525,107990.0,107980.0,0.04349]
[1761833624372,0.10900659,107990.0,107980.0,0.41818]
[1761833624567,0.10900659,107990.0,107980.0,0.66278355]
[1761833624871,0.10900659,107990.0,107980.0,1.03011204]
[1761833625765,0.10900659,107990.0,107980.0,0.42746849]
[1761833625963,0.10900659,107990.0,107980.0,0.41818]
[1761833625964,0.15444659,107990.0,107980.0,0.41818]
[1761833626268,0.108,107990.0,107980.0,0.05738]
[1761833626567,0.08575,107990.0,107980.0,0.66002355]
[1761833626956,0.09275,107990.0,107980.0,0.66002355]
[1761833627373,0.09475,107990.0,107980.0,0.66002355]
[1761833627668,0.08775,107990.0,107980.0,0.66002355]
[1761833628664,0.08775,107990.0,107980.0,0.66930317]
[1761833630972,0.11,107990.0,107980.0,0.41818]
[1761833631269,0.13319,107990.0,107980.0,0.42767699]
[1761833631568,0.11,107990.0,107980.0,0.41818]
[1761833631967,0.13133,107990.0,107980.0,0.40429]
[1761833632168,0.13133,107990.0,107980.0,0.04349]
[1761833632364,0.15133,107990.0,107980.0,0.04349]
[1761833632575,0.13133,107990.0,107980.0,0.04349]
[1761833632872,0.51213,107990.0,107980.0,0.04349]
[1761833633373,0.73213,107990.0,107980.0,0.02177]
[1761833634174,0.51213,107990.0,107980.0,0.04485]
[1761833634471,0.13133,107990.0,107980.0,0.05884]
[1761833635162,0.42133,107990.0,107980.0,0.04485]
[1761833635367,0.42133,107990.0,107970.0,0.93040355]
[1761833635368,0.04372,107980.0,107970.0,0.73489]
[1761833635572,0.04372,107980.0,107970.0,0.40713]
[1761833636770,0.04472,107980.0,107970.0,0.40713]
[1761833638966,0.02339,107980.0,107970.0,0.40713]
[1761833639170,0.04472,107980.0,107970.0,0.40713]
[1761833640379,0.001,107980.0,107970.0,0.64897355]
[1761833640780,0.04472,107980.0,107970.0,0.40713]
[1761833641480,0.04472,107980.0,107970.0,0.64897355]
[1761833641481,0.001,107980.0,107970.0,0.64897355]
[1761833641968,0.001,107980.0,107970.0,0.74160935]
[1761833642168,0.08575,107990.0,107980.0,0.06032]
[1761833642373,0.08575,107990.0,107980.0,0.66296355]
[1761833642583,0.08575,107990.0,107980.0,0.75559075]
[1761833643079,0.08575,107990.0,107980.0,0.66296355]
[1761833643275,0.08675,107990.0,107980.0,0.66296355]
[1761833643479,0.13347,107990.0,107980.0,0.42112]
[1761833643680,0.13347,107990.0,107980.0,0.04633]
[1761833644080,0.13347,107990.0,107970.0,0.40713]
[1761833644081,0.04372,107980.0,107970.0,0.40713]
[1761833644269,0.06372,107980.0,107970.0,0.40713]
[1761833644469,0.06372,107980.0,107960.0,0.04633]
[1761833644470,0.04372,107970.0,107960.0,0.04633]
[1761833644676,0.61629355,107980.0,107950.0,0.40713]
[1761833644981,0.40452,107970.0,107960.0,0.02325]
[1761833645175,0.05737,107960.0,107950.0,0.04633]
[1761833645369,0.04372,107950.0,107940.0,0.40713]
[1761833645570,0.56452,107950.0,107940.0,0.04633]
[1761833645769,0.02239,107940.0,107930.0,0.3608]
[1761833645984,0.04372,107940.0,107930.0,0.40713]
[1761833646983,0.02239,107940.0,107930.0,0.40713]
[1761833647285,0.04372,107950.0,107940.0,0.06032]
[1761833647483,0.06680071,107950.0,107940.0,0.42112]
[1761833647786,0.37445,107960.0,107950.0,0.04633]
[1761833647787,0.04372,107960.0,107950.0,0.04633]
[1761833647977,0.06678716,107960.0,107950.0,0.40713]
[1761833648178,0.04545716,107960.0,107950.0,0.04633]
[1761833648482,0.07939137,107960.0,107940.0,0.37479]
[1761833648674,0.04372,107950.0,107940.0,0.42112]
[1761833649478,0.04372,107950.0,107940.0,0.06032]
[1761833649985,0.04472,107950.0,107940.0,0.06032]
[1761833650474,0.04472,107950.0,107940.0,0.04633]
[1761833650680,0.04472,107950.0,107940.0,0.06032]
[1761833651472,0.04572,107950.0,107940.0,0.06032]
[1761833651679,0.04572,107950.0,107940.0,0.42112]
[1761833652283,0.002,107950.0,107940.0,0.42112]
[1761833652586,0.002,107950.0,107940.0,0.66296355]
[1761833653087,0.002,107950.0,107940.0,0.42112]
[1761833653273,0.002,107950.0,107940.0,0.66296355]
[1761833653477,0.002,107950.0,107940.0,0.66572355]
[1761833653671,0.002,107950.0,107940.0,1.68578345]
[1761833653884,0.3608,107970.0,107960.0,0.06032]
[1761833654085,0.02239,107970.0,107960.0,0.06032]
[1761833654482,1.02452,107970.0,107960.0,0.04633]
[1761833654687,1.04753079,107970.0,107960.0,0.02325]
[1761833654888,0.68673079,107970.0,107960.0,0.04654]
[1761833655182,0.04472,107970.0,107960.0,0.05989]
[1761833655375,0.001,107970.0,107960.0,0.66253355]
[1761833655578,0.001,107970.0,107960.0,0.42069]
[1761833656089,0.003,107970.0,107960.0,0.42069]
[1761833656686,0.003,107970.0,107960.0,0.66253355]
[1761833657491,0.003,107970.0,107960.0,0.75517595]
[1761833657689,0.003,107970.0,107960.0,0.66253355]
[1761833658089,0.003,107970.0,107960.0,0.42069]
[1761833658293,0.04677,107970.0,107960.0,0.42069]
[1761833658586,0.003,107970.0,107960.0,0.42069]
[1761833658890,0.12952,107980.0,107970.0,0.04658]
[1761833659088,0.17212589,107980.0,107970.0,0.04658]
[1761833659291,0.18489589,107980.0,107970.0,0.04658]
[1761833659493,0.04377,107970.0,107960.0,0.04658]
[1761833659693,0.06377,107970.0,107960.0,0.05993]
[1761833660196,0.04377,107960.0,107950.0,0.04658]
[1761833660380,0.05726,107960.0,107950.0,0.04658]
[1761833660587,0.04377,107950.0,107940.0,0.06057]
[1761833660791,0.04377,107950.0,107930.0,0.40738]
[1761833660792,0.04377,107940.0,107930.0,0.40738]
[1761833660986,0.06377,107940.0,107930.0,0.40738]
[1761833661289,0.41743,107960.0,107950.0,0.04458]
[1761833661496,0.74743,107960.0,107930.0,0.60264355]
[1761833661798,0.04314,107940.0,107930.0,0.40538]
[1761833661988,0.06314,107940.0,107930.0,0.40538]
[1761833662189,0.04314,107940.0,107930.0,0.40538]
[1761833662385,0.40394,107950.0,107940.0,0.05851]
[1761833662695,0.04514,107960.0,107950.0,0.04458]
[1761833662900,0.002,107960.0,107950.0,0.04458]
[1761833663192,0.73126,107970.0,107960.0,0.02202]
[1761833663386,0.80126,107970.0,107960.0,0.04458]
[1761833663694,0.75126,107970.0,107960.0,0.04458]
[1761833663890,0.04314,107950.0,107940.0,0.41931]
[1761833664794,0.06414,107950.0,107940.0,0.05851]
[1761833664998,0.04414,107950.0,107940.0,0.05851]
[1761833665199,0.06414,107950.0,107940.0,0.05851]
[1761833665389,0.04414,107950.0,107940.0,0.05851]
[1761833665790,0.04614,107950.0,107940.0,0.05851]
[1761833666389,0.003,107950.0,107940.0,0.05851]
[1761833666591,0.04614,107950.0,107940.0,0.05851]
[1761833667096,0.003,107950.0,107940.0,0.05851]
[1761833667890,0.003,107950.0,107940.0,0.66115355]
[1761833668300,0.003,107950.0,107940.0,0.41931]
[1761833669688,0.003,107950.0,107940.0,0.66115355]
[1761833670497,0.003,107950.0,107940.0,0.75381245]
[1761833671199,0.003,107950.0,107940.0,0.75657245]
[1761833671391,0.003,107950.0,107940.0,0.9194646]
[1761833671596,0.001,107950.0,107940.0,0.9194646]
[1761833671789,0.50246,107980.0,107970.0,0.04458]
[1761833671989,0.81508802,107980.0,107970.0,0.04458]
[1761833672993,0.04314,107970.0,107960.0,0.03595]
[1761833673189,0.08576802,107970.0,107960.0,0.05851]
[1761833673394,0.08576802,107970.0,107960.0,0.04458]
[1761833673995,0.06576802,107970.0,107960.0,0.05851]
[1761833674704,0.06976802,107970.0,107960.0,0.05851]
[1761833674903,0.02521335,107970.0,107960.0,0.41931]
[1761833675201,0.02721335,107970.0,107960.0,0.41931]
[1761833675602,0.02721335,107970.0,107960.0,0.8240457]
[1761833675793,0.006,107970.0,107960.0,0.8240457]
[1761833676102,0.006,107970.0,107960.0,0.9166871]
[1761833676303,0.006,107970.0,107960.0,1.5166871]
[1761833676601,0.00494248,107970.0,107960.0,0.9166871]
[1761833676790,0.00494248,107970.0,107960.0,0.9194471]
[1761833676992,0.00494248,107970.0,107960.0,0.9166871]
[1761833677403,0.00494248,107970.0,107960.0,0.98284414]
[1761833677613,0.12889,107980.0,107970.0,0.04458]
[1761833677806,0.12889,107980.0,107970.0,0.40538]
[1761833678400,0.08575,107980.0,107970.0,0.9027484]
[1761833678702,0.08675,107980.0,107970.0,0.9055084]
[1761833678894,0.01555607,107980.0,107970.0,1.37128838]
[1761833679209,0.73802,108020.0,108010.0,0.04458]
[1761833679404,0.76757922,108020.0,108010.0,0.04458]
[1761833679705,1.01757922,108020.0,108010.0,0.02202]
[1761833680006,0.04314,108010.0,108000.0,0.40538]
[1761833681000,0.73802,108020.0,108010.0,0.04458]
[1761833681397,1.1277,108020.0,108000.0,0.3608]
[1761833681592,0.04514,108010.0,108000.0,0.40538]
[1761833681799,0.04614,108010.0,108000.0,0.40538]
[1761833682092,0.06614,108010.0,108000.0,0.40538]
[1761833682293,0.04614,108010.0,108000.0,0.40538]
[1761833682703,0.17614,108010.0,108000.0,0.40538]
[1761833682904,0.04414,108010.0,108000.0,0.40538]
[1761833683304,0.04314,108010.0,108000.0,0.40538]
[1761833683906,0.04314,108010.0,108000.0,0.41323]
[1761833684093,0.04414,108010.0,108000.0,0.41323]
[1761833684600,0.001,108010.0,108000.0,0.41323]
[1761833684911,0.004,108010.0,108000.0,0.41323]
[1761833685304,0.004,108010.0,108000.0,0.8356805]
[1761833685504,0.05968,108020.0,108010.0,0.1371819]
[1761833685698,0.0587511,108020.0,108010.0,0.9054776]
[1761833685914,0.05071,108030.0,108020.0,0.0953534]
[1761833686111,0.05981138,108060.0,108040.0,0.0925761]
[1761833686307,0.03525,108060.0,108040.0,1.1851518]
[1761833686516,0.01374,108060.0,108050.0,0.8581034]
[1761833686701,0.11443602,108080.0,108050.0,0.8608602]
[1761833686906,0.02456138,108070.0,108060.0,0.3608]
[1761833687107,0.04314,108070.0,108060.0,1.8608]
[1761833687308,0.02252028,108070.0,108060.0,2.6878948]
[1761833687616,0.00937215,108080.0,108070.0,0.0925505]
[1761833687817,0.03299464,108100.0,108090.0,0.0925334]
[1761833688107,0.02176569,108100.0,108090.0,1.68521811]
[1761833688308,0.08204589,108120.0,108110.0,0.0925163]
[1761833688502,0.08204589,108120.0,108110.0,1.545852]
[1761833688503,0.02173896,108120.0,108110.0,1.545852]
[1761833688702,0.03547896,108120.0,108110.0,1.4533357]
[1761833689113,0.03547896,108120.0,108110.0,1.0486]
[1761833689416,0.03547896,108120.0,108110.0,1.4560957]
[1761833689613,0.03547896,108120.0,108110.0,1.1263357]
[1761833689812,0.07861896,108120.0,108110.0,1.04856]
[1761833690004,0.07861896,108120.0,108110.0,0.32696]
[1761833690212,0.07961896,108120.0,108110.0,0.32696]
[1761833690509,0.07961896,108120.0,108110.0,0.68776]
[1761833691409,0.08261896,108120.0,108110.0,0.68776]
[1761833691810,0.03947896,108120.0,108110.0,0.68776]
[1761833692010,0.03947896,108120.0,108110.0,1.0952557]
[1761833692206,0.03847896,108120.0,108110.0,1.0924957]
[1761833692903,0.03847896,108120.0,108110.0,0.68776]
[1761833693103,0.03847896,108120.0,108110.0,1.0924957]
[1761833693417,0.03847896,108120.0,108110.0,0.68776]
[1761833693619,0.03847896,108120.0,108110.0,1.0924957]
[1761833694012,0.03847896,108120.0,108110.0,0.68776]
[1761833694218,0.08213896,108120.0,108110.0,1.0924957]
[1761833694516,0.03847896,108120.0,108110.0,1.1850119]
[1761833694818,0.03847896,108120.0,108110.0,1.0924957]
[1761833695118,0.03847896,108120.0,108110.0,1.1850119]
[1761833695720,0.03847896,108120.0,108110.0,1.0924957]
[1761833695910,0.03847896,108120.0,108110.0,1.1877719]
[1761833696113,0.02473896,108120.0,108110.0,1.32706981]
[1761833697417,0.02373896,108120.0,108110.0,1.32706981]
[1761833698007,0.002,108120.0,108110.0,1.40137927]
[1761833698219,0.00086268,108120.0,108110.0,0.99664357]
[1761833698417,0.00086268,108120.0,108110.0,1.40137927]
[1761833698919,0.00086268,108120.0,108110.0,1.39861927]
[1761833699120,0.00086268,108120.0,108110.0,1.40137927]
[1761833699414,0.0811,108140.0,108120.0,0.0925054]
[1761833699713,0.12476,108140.0,108130.0,0.68744]
[1761833699917,0.15775464,108140.0,108130.0,0.68744]
[1761833700625,0.12576,108140.0,108130.0,0.68744]
[1761833700916,0.12476,108140.0,108130.0,0.32664]
[1761833701121,0.04366,108130.0,108120.0,0.3608]
[1761833701419,0.05639,108120.0,108110.0,0.3608]
[1761833701612,0.01273,108120.0,108110.0,1.2216117]
[1761833701816,0.0841,108140.0,108110.0,1.36080788]
[1761833702012,0.04366,108130.0,108120.0,0.68736]
[1761833702518,0.02227,108130.0,108120.0,0.7798675]
[1761833702710,0.001,108130.0,108120.0,1.1846032]
[1761833702907,0.001,108130.0,108120.0,1.1873632]
[1761833703518,0.001,108130.0,108120.0,1.32561479]
[1761833703719,0.002,108130.0,108120.0,1.32561479]
[1761833704016,0.002,108130.0,108120.0,1.2398021]
[1761833704217,0.04566,108130.0,108120.0,1.2398021]
[1761833704623,0.04566,108130.0,108120.0,1.3323096]
[1761833705013,0.0019,108130.0,108120.0,1.3323096]
[1761833705323,0.0019,108130.0,108120.0,1.3350696]
[1761833705720,0.0019,108130.0,108120.0,1.3323096]
[1761833705916,0.04556,108130.0,108120.0,0.8350664]
[1761833706224,0.04556,108130.0,108120.0,1.2398021]
[1761833707226,0.0019,108130.0,108120.0,1.3350695]
[1761833707419,0.04556,108130.0,108120.0,1.2398021]
[1761833707722,0.0019,108130.0,108120.0,1.3350695]
[1761833708118,0.0019,108130.0,108120.0,1.3323095]
[1761833708323,0.0019,108130.0,108120.0,1.3350695]
[1761833708518,0.0019,108130.0,108120.0,1.3323095]
[1761833708718,0.0019,108130.0,108120.0,0.9275738]
[1761833709024,0.0019,108130.0,108120.0,1.3323095]
[1761833709320,0.07855464,108130.0,108120.0,0.49905159]
[1761833709621,0.05639,108120.0,108110.0,1.0919757]
[1761833709822,0.08916789,108120.0,108110.0,1.10519491]